bitfinex/quotes_ETHUSD_20240921
["timestamp","ask_amount","ask_price","bid_price","bid_amount"]
[1726905684637,2.2664,2559.1,2558.8,3.0]
[1726905685067,2.2664,2559.1,2558.6,4.7159117]
[1726905685647,2.2664,2559.1,2558.8,3.0]
[1726905686053,2.2664,2559.1,2558.6,4.7159117]
[1726905686439,2.2664,2559.1,2559.0,3.0]
[1726905686643,3.18857058,2559.1,2559.0,3.0]
[1726905689675,3.18857058,2559.1,2558.6,4.7159117]
[1726905689872,2.2664,2559.1,2558.6,4.7159117]
[1726905690071,2.2664,2559.1,2558.8,3.0]
[1726905690457,2.2664,2559.1,2558.6,4.7159117]
[1726905690945,2.2664,2559.1,2559.0,3.0]
[1726905691270,3.18857267,2559.1,2559.0,3.0]
[1726905691773,3.40887267,2559.1,2559.0,3.0]
[1726905691935,4.79212169,2559.1,2559.0,3.0]
[1726905692271,6.02313235,2559.1,2559.0,3.0]
[1726905693243,6.83224809,2559.1,2559.0,3.0]
[1726905693865,6.83224809,2559.1,2558.9,35.0]
[1726905693866,2.4867,2559.0,2558.3,4.7159117]
[1726905694085,0.92217267,2558.9,2558.5,1.7159117]
[1726905694303,3.3072102,2559.0,2558.5,1.7159117]
[1726905694513,0.92214846,2558.9,2558.5,1.7159117]
[1726905694791,2.3326,2558.8,2558.2,5.04765994]
[1726905695098,0.91820915,2559.0,2558.2,5.04765994]
[1726905695099,2.3326,2558.7,2558.2,3.0]
[1726905695309,2.3326,2558.7,2558.1,4.7159117]
[1726905696000,2.3326,2558.7,2558.3,1.7159117]
[1726905696559,2.3326,2558.7,2558.1,3.0]
[1726905696913,2.3326,2558.5,2557.9,1.7159117]
[1726905697196,2.3326,2558.4,2557.9,1.7159117]
[1726905697894,2.3326,2558.4,2558.1,1.7159117]
[1726905705558,2.4121,2558.7,2558.3,1.7159117]
[1726905705704,2.4121,2558.7,2558.3,4.7159117]
[1726905714426,0.55,2558.9,2558.4,2.3165]
[1726905714739,0.55,2558.9,2558.4,5.3165]
[1726905715029,0.55,2558.9,2558.5,1.7159117]
[1726905717516,2.3341,2559.0,2558.5,1.7159117]
[1726905717841,2.3341,2559.0,2558.5,4.7159117]
[1726905719305,3.56210041,2559.0,2558.5,4.7159117]
[1726905722654,2.3341,2559.0,2558.7,1.7159117]
[1726905725047,2.3341,2559.0,2558.5,4.7159117]
[1726905725723,3.1546102,2559.0,2558.5,3.0]
[1726905725909,3.1546102,2559.0,2558.4,5.3165]
[1726905726106,0.31546102,2558.9,2558.4,5.3165]
[1726905726425,3.1546102,2559.0,2558.4,5.3165]
[1726905727513,2.3341,2559.0,2558.4,5.3165]
[1726905727759,3.1546102,2559.0,2558.4,5.3165]
[1726905727958,0.55,2558.9,2558.4,5.3165]
[1726905728252,0.55,2558.9,2558.2,1.7159117]
[1726905728253,2.3868,2558.8,2558.2,1.7159117]
[1726905728759,1.02794321,2558.9,2558.0,2.2609]
[1726905729054,2.3868,2558.6,2558.1,3.0]
[1726905731970,0.6477204,2558.5,2557.7,5.2609]
[1726905732181,2.3868,2558.4,2557.7,3.9768117]
[1726905732329,2.77230306,2558.4,2557.8,3.0]
[1726905732529,3.03453264,2558.3,2557.8,3.0]
[1726905733068,2.3868,2558.2,2557.4,2.2609]
[1726905733269,2.3868,2558.2,2557.7,1.7159117]
[1726905733270,2.81085459,2558.2,2557.7,1.7159117]
[1726905734130,3.63136479,2558.2,2557.7,1.7159117]
[1726905734333,2.81085459,2558.2,2557.7,1.7159117]
[1726905735228,0.09773758,2558.1,2557.5,3.0]
[1726905735454,0.55,2558.1,2557.7,1.7159117]
[1726905735628,0.97791077,2558.1,2557.7,1.7159117]
[1726905736277,2.9201,2557.9,2557.4,2.2609]
[1726905736457,2.9201,2557.9,2557.5,4.7159117]
[1726905741938,2.9201,2557.9,2557.7,1.7159117]
[1726905742973,2.3701,2557.9,2557.7,1.7159117]
[1726905747584,2.3701,2557.9,2557.4,1.7159117]
[1726905747760,2.60711,2557.9,2557.4,1.7159117]
[1726905751080,0.09774819,2557.8,2557.4,1.7159117]
[1726905751586,2.70485819,2557.9,2557.4,1.7159117]
[1726905751748,2.60711,2557.9,2557.4,1.7159117]
[1726905751947,2.3701,2557.9,2557.4,1.7159117]
[1726905755899,0.55,2557.8,2557.2,2.4562]
[1726905756126,2.4107,2557.7,2557.0,2.4736]
[1726905756400,2.4107,2557.7,2557.2,1.7159117]
[1726905759381,2.70916248,2557.7,2557.2,1.7159117]
[1726905761191,2.70916248,2557.7,2556.9,3.0]
[1726905761192,2.293,2557.5,2556.9,3.0]
[1726905761397,2.293,2557.3,2556.9,1.7159117]
[1726905765978,2.39076767,2557.3,2556.9,1.7159117]
[1726905766178,2.68484444,2557.3,2556.9,1.7159117]
[1726905766594,2.58707677,2557.3,2556.9,1.7159117]
[1726905767306,2.68484488,2557.3,2556.9,1.7159117]
[1726905767501,2.58707677,2557.3,2556.9,1.7159117]
[1726905769436,2.68484486,2557.3,2556.9,1.7159117]
[1726905769579,2.58707677,2557.3,2556.9,1.7159117]
[1726905771417,2.293,2557.3,2556.9,1.7159117]
[1726905784434,2.293,2557.3,2557.1,1.7159117]
[1726905788034,2.293,2557.3,2557.2,35.0]
[1726905794246,2.293,2557.3,2557.1,1.7159117]
[1726905794613,2.293,2557.3,2557.2,35.0]
[1726905797817,0.293,2557.3,2557.2,35.0]
[1726905799451,0.8205102,2557.5,2557.2,35.0]
[1726905800344,0.92201961,2557.4,2557.2,35.0]
[1726905800673,0.9182678,2557.4,2557.2,35.0]
[1726905800952,3.17716582,2557.3,2557.2,35.0]
[1726905802223,5.3810105,2557.3,2557.2,35.0]
[1726905802620,5.47877592,2557.3,2557.2,35.0]
[1726905803857,5.3810105,2557.3,2556.9,1.7159117]
[1726905804056,0.92206582,2557.2,2556.9,1.7159117]
[1726905804253,3.17337805,2557.3,2557.0,35.0]
[1726905804453,0.92262253,2557.2,2557.0,35.0]
[1726905804651,3.0756102,2557.3,2557.0,35.0]
[1726905804852,0.92262422,2557.2,2557.0,35.0]
[1726905805058,3.0756102,2557.3,2557.0,35.0]
[1726905805263,0.92261688,2557.2,2557.0,35.0]
[1726905805419,3.0756102,2557.3,2557.0,35.0]
[1726905805619,0.92279792,2557.2,2557.0,35.0]
[1726905805817,3.0756102,2557.3,2557.0,35.0]
[1726905806163,0.92278496,2557.2,2557.0,35.0]
[1726905806364,0.8205102,2557.2,2557.0,35.0]
[1726905806716,3.0756102,2557.3,2557.0,35.0]
[1726905806975,3.12813916,2557.2,2557.0,35.0]
[1726905807172,0.8205102,2557.2,2557.0,35.0]
[1726905811453,2.3071994,2557.1,2557.0,38.0]
[1726905811751,0.92285879,2557.1,2557.0,38.0]
[1726905812158,0.8205102,2557.2,2557.0,38.0]
[1726905812482,0.92285234,2557.1,2557.0,38.0]
[1726905812688,0.8205102,2557.2,2557.0,38.0]
[1726905813070,0.92286421,2557.1,2557.0,38.0]
[1726905813386,3.12769998,2557.1,2557.0,38.0]
[1726905813554,3.12768241,2557.1,2557.0,38.0]
[1726905815373,0.92286421,2557.1,2557.0,38.0]
[1726905815573,2.30847378,2557.1,2557.0,38.0]
[1726905815979,0.92338951,2557.1,2557.0,38.0]
[1726905816582,0.92338951,2557.1,2556.8,4.7536366]
[1726905816794,0.8205102,2557.1,2556.8,4.7536366]
[1726905816999,0.8205102,2557.2,2557.0,3.0]
[1726905817199,0.9233688,2557.1,2557.0,3.0]
[1726905817366,2.3084018,2557.1,2557.0,3.0]
[1726905817566,3.128912,2557.1,2557.0,3.0]
[1726905817782,0.9233688,2557.1,2557.0,3.0]
[1726905818517,3.12887698,2557.1,2557.0,3.0]
[1726905818715,0.9233688,2557.1,2557.0,3.0]
[1726905820513,0.9233688,2557.1,2556.8,4.7536366]
[1726905820668,3.0756102,2557.3,2557.0,1.7159117]
[1726905820884,0.92320844,2557.2,2557.1,35.0]
[1726905821623,0.92318575,2557.2,2557.1,35.0]
[1726905822996,2.30802022,2557.2,2557.1,35.0]
[1726905823220,2.30803507,2557.2,2557.1,35.0]
[1726905823624,0.92318575,2557.2,2557.1,35.0]
[1726905823927,2.3080347,2557.2,2557.1,35.0]
[1726905824099,0.92318575,2557.2,2557.1,35.0]
[1726905824298,2.30804428,2557.2,2557.1,35.0]
[1726905824510,0.92318575,2557.2,2557.1,35.0]
[1726905825127,0.92318575,2557.2,2557.1,37.2734]
[1726905825422,0.8205102,2557.3,2557.1,35.0]
[1726905826058,0.92321994,2557.2,2557.1,35.0]
[1726905827462,4.1869344,2557.2,2557.1,35.0]
[1726905827622,5.00582259,2557.2,2557.1,35.0]
[1726905828541,4.90805436,2557.2,2557.1,35.0]
[1726905828755,4.90805436,2557.2,2556.8,0.0377249]
[1726905828756,2.9106,2557.1,2556.8,0.0377249]
[1726905829064,3.73186326,2556.9,2556.8,0.0377249]
[1726905829249,7.35175557,2556.9,2556.8,0.0377249]
[1726905829452,6.21765255,2556.9,2556.8,0.0377249]
[1726905829666,8.06383738,2556.9,2556.8,0.0377249]
[1726905829864,7.96603466,2556.9,2556.8,0.0377249]
[1726905830085,7.35087636,2556.9,2556.8,0.0377249]
[1726905830256,7.44867308,2556.9,2556.8,0.0377249]
[1726905831436,6.2171108,2556.9,2556.8,0.0377249]
[1726905831868,7.44867308,2556.9,2556.8,0.0377249]
[1726905832273,7.03745548,2556.9,2556.8,0.0377249]
[1726905835078,7.03573067,2556.9,2556.8,0.0377249]
[1726905837554,7.03565408,2556.9,2556.8,0.0377249]
[1726905838288,6.2153094,2556.9,2556.8,0.0377249]
[1726905838482,6.2152023,2556.9,2556.8,0.0377249]
[1726905839279,4.83185553,2556.9,2556.8,0.0377249]
[1726905840004,7.03531182,2556.9,2556.8,0.0377249]
[1726905840503,6.21496714,2556.9,2556.8,0.0377249]
[1726905840672,7.03468871,2556.9,2556.8,0.0377249]
[1726905840869,7.44652942,2556.9,2556.8,0.0377249]
[1726905841699,9.70051647,2556.9,2556.8,0.0377249]
[1726905841904,9.60271975,2556.9,2556.8,0.0377249]
[1726905842257,7.96104587,2556.9,2556.8,0.0377249]
[1726905842457,9.60240316,2556.9,2556.8,0.0377249]
[1726905842773,13.92130934,2556.9,2556.8,0.0377249]
[1726905842967,11.87203561,2556.9,2556.8,0.0377249]
[1726905846724,2.345,2557.0,2556.8,0.0377249]
[1726905847015,3.21744078,2556.9,2556.8,0.0377249]
[1726905848344,3.76744078,2556.9,2556.8,0.0377249]
[1726905849275,1.56830047,2556.9,2556.8,0.0377249]
[1726905849619,2.33582088,2556.9,2556.8,0.0377249]
[1726905850002,4.52587074,2556.9,2556.8,0.0377249]
[1726905851015,2.33582088,2556.9,2556.8,0.0377249]
[1726905852431,3.70740321,2556.9,2556.8,0.0377249]
[1726905852606,2.33582088,2556.9,2556.8,0.0377249]
[1726905852802,2.32970909,2556.9,2556.8,0.0377249]
[1726905857902,2.32980642,2556.9,2556.8,0.0377249]
[1726905859413,4.52006345,2556.9,2556.8,0.0377249]
[1726905859613,3.70166669,2556.9,2556.8,0.0377249]
[1726905859942,1.41532518,2556.9,2556.8,0.0377249]
[1726905860238,2.32989815,2556.9,2556.8,0.0377249]
[1726905861011,7.85625482,2556.9,2556.8,0.0377249]
[1726905861218,13.30620918,2556.9,2556.8,0.0377249]
[1726905861929,11.66941566,2556.9,2556.8,0.0377249]
[1726905862729,11.66965023,2556.9,2556.8,0.0377249]
[1726905863124,13.71551649,2556.9,2556.8,0.0377249]
[1726905863338,11.66965023,2556.9,2556.8,0.0377249]
[1726905863546,13.71551649,2556.9,2556.8,0.0377249]
[1726905864403,11.66965023,2556.9,2556.8,0.0377249]
[1726905864856,11.66965023,2556.9,2556.8,0.3377249]
[1726905865050,13.71551649,2556.9,2556.8,0.3377249]
[1726905865410,13.71551649,2556.9,2556.1,0.0377249]
[1726905865411,2.875,2556.2,2556.1,0.0377249]
[1726905865610,4.6887425,2556.2,2556.1,0.0377249]
[1726905865812,7.79419998,2556.2,2556.1,0.0377249]
[1726905867725,7.79211631,2556.2,2556.1,0.0377249]
[1726905872552,7.79253214,2556.2,2556.1,0.0377249]
[1726905872737,9.24942261,2556.2,2556.1,0.0377249]
[1726905872934,9.15159181,2556.2,2556.1,0.0377249]
[1726905873367,8.33315108,2556.2,2556.1,0.0377249]
[1726905873586,9.15172284,2556.2,2556.1,0.0377249]
[1726905873784,8.33315108,2556.2,2556.1,0.0377249]
[1726905874339,9.56081217,2556.2,2556.1,0.0377249]
[1726905875766,10.1622863,2556.2,2556.1,0.0377249]
[1726905875955,11.79916776,2556.2,2556.1,0.0377249]
[1726905876157,10.1622863,2556.2,2556.1,0.0377249]
[1726905876747,9.56096404,2556.2,2556.1,0.0377249]
[1726905877162,9.56082968,2556.2,2556.1,0.0377249]
[1726905877486,8.64669012,2556.2,2556.1,0.0377249]
[1726905877696,10.1746737,2556.2,2556.1,0.0377249]
[1726905877873,32.26274058,2556.2,2556.1,0.0377249]
[1726905878486,36.17479058,2556.2,2556.1,0.0377249]
[1726905880251,34.53790912,2556.2,2556.1,0.0377249]
[1726905880946,33.93656464,2556.2,2556.1,0.0377249]
[1726905881148,28.30852577,2556.2,2556.1,0.0377249]
[1726905881378,30.02450482,2556.2,2556.1,0.0377249]
[1726905881789,30.6255198,2556.2,2556.1,0.0377249]
[1726905881998,30.02450683,2556.2,2556.1,0.0377249]
[1726905882225,30.02444111,2556.2,2556.1,0.0377249]
[1726905882405,30.62526429,2556.2,2556.1,0.0377249]
[1726905883273,32.26214575,2556.2,2556.1,0.0377249]
[1726905883620,30.62526429,2556.2,2556.1,0.0377249]
[1726905883807,30.02427675,2556.2,2556.1,0.0377249]
[1726905886323,30.02444411,2556.2,2556.1,0.0377249]
[1726905886524,30.02444412,2556.2,2556.1,0.0377249]
[1726905887487,30.0244747,2556.2,2556.1,0.0377249]
[1726905892530,14.2127247,2556.2,2556.1,0.0377249]
[1726905892828,16.45047694,2556.2,2556.1,0.0377249]
[1726905892998,14.81359548,2556.2,2556.1,0.0377249]
[1726905893321,16.45047694,2556.2,2556.1,0.0377249]
[1726905895586,36.30047694,2556.2,2556.1,0.0377249]
[1726905896529,36.30118939,2556.2,2556.1,0.0377249]
[1726905897616,36.30144111,2556.2,2556.1,0.0377249]
[1726905898290,36.30216078,2556.2,2556.1,0.0377249]
[1726905899537,34.66455965,2556.2,2556.1,0.0377249]
[1726905900218,36.71131611,2556.2,2556.1,0.0377249]
[1726905900422,34.66455965,2556.2,2556.1,0.0377249]
[1726905901040,36.30259997,2556.2,2556.1,0.0377249]
[1726905901247,34.66541758,2556.2,2556.1,0.0377249]
[1726905901732,27.67452439,2556.2,2556.1,0.0377249]
[1726905901936,23.97941117,2556.2,2556.1,0.0377249]
[1726905903010,24.52941117,2556.2,2556.1,0.0377249]
[1726905903405,2.28752876,2556.2,2556.1,2.3499249]
[1726905903707,0.9150115,2556.2,2556.1,2.3499249]
[1726905903909,0.91545849,2556.2,2556.1,2.3499249]
[1726905904142,0.91724933,2556.3,2556.1,2.3499249]
[1726905904357,0.91568897,2556.2,2556.1,2.3499249]
[1726905904639,0.91567784,2556.2,2556.1,2.3499249]
[1726905904846,1.46567784,2556.2,2556.1,2.3499249]
[1726905905454,2.83961933,2556.2,2556.1,2.3499249]
[1726905905954,2.83987069,2556.2,2556.1,2.3499249]
[1726905906340,5.0336689,2556.2,2556.1,2.3499249]
[1726905906841,5.44292405,2556.2,2556.1,2.3499249]
[1726905910541,12.60316872,2556.2,2556.1,0.0377249]
[1726905910742,13.01884164,2556.2,2556.1,0.0377249]
[1726905911165,9.02512994,2556.2,2556.1,0.0377249]
[1726905911351,10.33094671,2556.2,2556.1,0.0377249]
[1726905911664,10.74104164,2556.2,2556.1,0.0377249]
[1726905912019,9.36710015,2556.2,2556.1,0.0377249]
[1726905913349,7.31569784,2556.2,2556.1,0.0377249]
[1726905913671,9.46492084,2556.2,2556.1,0.0377249]
[1726905913827,9.36710015,2556.2,2556.1,0.0377249]
[1726905917264,7.31569784,2556.2,2556.1,0.0377249]
[1726905917422,7.41352368,2556.2,2556.1,0.0377249]
[1726905917824,9.46523469,2556.2,2556.1,0.0377249]
[1726905918024,9.36740885,2556.2,2556.1,0.0377249]
[1726905918328,11.79990885,2556.2,2556.1,0.0377249]
[1726905919255,11.79990885,2556.2,2556.1,0.3377249]
[1726905919456,9.74819784,2556.2,2556.1,0.3377249]
[1726905919836,11.79992605,2556.2,2556.1,0.3377249]
[1726905920031,9.74856586,2556.2,2556.1,0.3377249]
[1726905920674,9.74856942,2556.2,2556.1,0.3377249]
[1726905920988,12.04189636,2556.2,2556.1,0.3377249]
[1726905921134,14.50397824,2556.2,2556.1,0.3377249]
[1726905921836,12.04189636,2556.2,2556.1,0.3377249]
[1726905922036,9.74856942,2556.2,2556.1,0.3377249]
[1726905923158,14.50396726,2556.2,2556.1,0.3377249]
[1726905923375,14.50396726,2556.2,2556.1,0.6377249]
[1726905923579,12.04188538,2556.2,2556.1,0.6377249]
[1726905924187,7.31606942,2556.2,2556.1,0.6377249]
[1726905924341,7.41389057,2556.2,2556.1,0.6377249]
[1726905925475,5.12068959,2556.2,2556.1,0.6377249]
[1726905925681,7.41396017,2556.2,2556.1,0.6377249]
[1726905926947,5.69804847,2556.2,2556.1,0.6377249]
[1726905927148,6.41646722,2556.2,2556.1,2.9112249]
[1726905927361,6.31864862,2556.2,2556.1,3.2112249]
[1726905927587,4.07417688,2556.2,2556.1,3.2112249]
[1726905928089,3.52417688,2556.2,2556.1,3.2112249]
[1726905928391,2.29327058,2556.2,2556.1,3.2112249]
[1726905928685,3.11382187,2556.2,2556.1,3.2112249]
[1726905929249,3.66382187,2556.2,2556.1,3.2112249]
[1726905930581,3.66293287,2556.2,2556.1,3.2112249]
[1726905931452,3.66293287,2556.2,2556.1,3.5112249]
[1726905932270,3.66293287,2556.2,2556.1,38.5112249]
[1726905932590,1.46695263,2556.2,2556.1,38.5112249]
[1726905933102,0.82055129,2556.5,2556.2,5.2735]
[1726905933252,0.82055129,2556.8,2556.3,2.2735]
[1726905933675,0.91617065,2556.7,2556.3,2.2735]
[1726905933880,0.82055129,2556.8,2556.3,2.2735]
[1726905934067,0.90730378,2556.7,2556.2,4.7159117]
[1726905934265,0.82055129,2556.8,2556.2,4.7159117]
[1726905934266,0.82055129,2556.8,2556.3,2.2735]
[1726905934467,0.55,2556.8,2556.3,2.2735]
[1726905935955,0.64778669,2556.8,2556.3,2.2735]
[1726905936151,0.90673724,2556.7,2556.3,2.2735]
[1726905936384,0.55,2556.6,2556.3,2.2735]
[1726905936582,0.55,2556.7,2556.3,2.2735]
[1726905937701,0.55,2556.5,2556.4,35.0]
[1726905938696,0.55,2556.6,2556.4,35.0]
[1726905942789,0.55,2556.7,2556.4,35.0]
[1726905948806,2.07072966,2556.7,2556.3,2.2735]
[1726905949018,0.55,2556.5,2556.3,2.2735]
[1726905949201,0.55,2556.5,2556.3,37.2735]
[1726905949507,0.55,2556.6,2556.3,37.2735]
[1726905952633,3.08646299,2556.6,2556.3,37.2735]
[1726905952838,0.55,2556.4,2556.3,37.2735]
[1726905953133,0.55,2556.4,2556.3,35.0]
[1726905955552,0.55,2556.4,2556.1,3.8398249]
[1726905955924,0.55,2556.4,2556.2,35.0]
[1726905959621,0.55,2556.5,2556.3,2.3192]
[1726905960233,0.55,2556.5,2556.4,35.0]
[1726905963397,0.55,2556.5,2556.4,37.3192]
[1726905963712,0.55,2556.7,2556.4,37.3192]
[1726905966558,2.32321526,2556.7,2556.4,2.3192]
[1726905967026,3.24156179,2556.7,2556.4,2.3192]
[1726905967318,3.24156179,2556.7,2556.2,37.3192]
[1726905967527,0.55,2556.5,2556.2,37.3192]
[1726905967689,0.99978466,2556.5,2556.2,37.3192]
[1726905968518,1.49200994,2556.5,2556.2,37.3192]
[1726905968730,0.55,2556.3,2556.1,1.5377249]
[1726905968909,0.64780942,2556.2,2556.1,1.5377249]
[1726905969390,2.53646299,2556.4,2556.1,1.5377249]
[1726905969391,0.55,2556.3,2556.1,1.5377249]
[1726905971093,1.9136187,2556.3,2556.1,1.5377249]
[1726905971288,2.10259087,2556.3,2556.1,1.5377249]
[1726905971927,0.55,2556.3,2556.1,1.5377249]
[1726905972431,0.55,2556.3,2556.2,2.3192]
[1726905972635,0.55,2556.4,2556.2,37.3192]
[1726905974793,1.37055129,2556.4,2556.2,37.3192]
[1726905975837,0.55,2556.4,2556.2,37.3192]
[1726905976557,1.37055129,2556.4,2556.2,37.3192]
[1726905976842,0.55,2556.4,2556.2,37.3192]
[1726905977611,1.37055129,2556.4,2556.2,2.3192]
[1726905978009,0.55,2556.4,2556.2,2.3192]
[1726905980020,1.37055129,2556.4,2556.2,2.3192]
[1726905980222,0.55,2556.4,2556.2,2.3192]
[1726905981840,0.55,2556.4,2556.3,35.0]
[1726905982149,1.46058282,2556.4,2556.3,35.0]
[1726905982936,2.8265218,2556.4,2556.3,35.0]
[1726905983137,2.8265218,2556.4,2556.2,2.3192]
[1726905983345,1.37055129,2556.4,2556.2,2.3192]
[1726905983830,1.37055129,2556.4,2556.2,37.3192]
[1726905985937,1.37055129,2556.4,2556.3,0.3]
[1726905986259,3.64716524,2556.4,2556.3,0.3]
[1726905989766,3.64765197,2556.4,2556.3,0.3]
[1726905989976,3.64765197,2556.4,2556.3,0.6]
[1726905990456,2.82661395,2556.4,2556.3,0.6]
[1726905990772,3.64767171,2556.4,2556.3,0.6]
[1726905991272,2.82661395,2556.4,2556.3,0.6]
[1726905991836,3.64768873,2556.4,2556.3,0.6]
[1726905992055,2.82661395,2556.4,2556.3,0.6]
[1726905992440,3.64769217,2556.4,2556.3,0.6]
[1726905992642,2.82661395,2556.4,2556.3,0.6]
[1726905993065,3.64768848,2556.4,2556.3,0.6]
[1726905993375,2.82661395,2556.4,2556.3,0.6]
[1726905993570,3.66661236,2556.4,2556.3,0.6]
[1726905994071,3.66661236,2556.4,2556.3,0.9]
[1726905994268,3.76441314,2556.4,2556.3,0.9]
[1726905994478,3.66661236,2556.4,2556.3,0.9]
[1726905995370,4.89751866,2556.4,2556.3,0.9]
[1726905997979,7.35301866,2556.4,2556.3,0.9]
[1726905998285,8.04175234,2556.4,2556.3,1.2]
[1726905998466,7.35382034,2556.4,2556.3,1.2]
[1726905998669,7.45162648,2556.4,2556.3,1.2]
[1726905998980,7.45159769,2556.4,2556.3,1.2]
[1726905999139,9.58519169,2556.4,2556.3,1.2]
[1726905999779,7.94391248,2556.4,2556.3,1.2]
[1726906000193,9.58519169,2556.4,2556.3,1.2]
[1726906000849,7.94391248,2556.4,2556.3,1.2]
[1726906001373,4.89829247,2556.4,2556.3,1.2]
[1726906002468,4.89829247,2556.4,2556.3,1.5]
[1726906002863,4.05980719,2556.4,2556.3,1.5]
[1726906003779,3.6492446,2556.4,2556.3,3.7613]
[1726906007563,3.6492446,2556.4,2556.3,1.5]
[1726906007791,3.6493426,2556.4,2556.3,1.5]
[1726906007954,4.58268126,2556.4,2556.3,1.5]
[1726906008863,3.76156374,2556.4,2556.3,1.5]
[1726906009072,3.85936358,2556.4,2556.3,1.5]
[1726906009256,5.09104369,2556.4,2556.3,1.5]
[1726906009455,4.99324385,2556.4,2556.3,1.5]
[1726906009704,5.58436546,2556.4,2556.3,1.5]
[1726906010566,7.22564467,2556.4,2556.3,1.5]
[1726906010897,5.58436546,2556.4,2556.3,1.5]
[1726906011254,7.22564467,2556.4,2556.3,1.5]
[1726906011460,5.58436546,2556.4,2556.3,1.5]
[1726906011872,7.22564467,2556.4,2556.3,1.5]
[1726906012273,5.58436546,2556.4,2556.3,1.5]
[1726906012700,3.30614038,2556.4,2556.3,1.5]
[1726906012860,5.58488068,2556.4,2556.3,1.5]
[1726906013067,7.22615989,2556.4,2556.3,1.5]
[1726906013557,5.58488068,2556.4,2556.3,1.5]
[1726906013783,4.99402467,2556.4,2556.3,1.5]
[1726906013987,4.06068601,2556.4,2556.3,1.5]
[1726906014430,3.10000039,2556.4,2556.3,1.5]
[1726906015082,0.91149612,2556.4,2556.3,1.5]
[1726906015882,1.46149612,2556.4,2556.3,1.5]
[1726906016110,3.65020308,2556.4,2556.3,1.5]
[1726906017691,3.65057204,2556.4,2556.3,1.5]
[1726906021236,3.65052892,2556.4,2556.3,1.5]
[1726906021656,2.82926883,2556.4,2556.3,1.5]
[1726906021832,3.65052892,2556.4,2556.3,1.5]
[1726906022230,4.69223424,2556.4,2556.3,1.5]
[1726906022765,6.92509533,2556.4,2556.3,1.5]
[1726906023748,6.82730156,2556.4,2556.3,1.5]
[1726906023964,6.82743658,2556.4,2556.3,1.5]
[1726906025831,6.92523874,2556.4,2556.3,1.5]
[1726906026049,6.925143,2556.4,2556.3,1.5]
[1726906027323,6.92514267,2556.4,2556.3,1.5]
[1726906028059,6.82734084,2556.4,2556.3,1.5]
[1726906029045,6.92514331,2556.4,2556.3,1.5]
[1726906029254,6.82734084,2556.4,2556.3,1.5]
[1726906031062,6.92494709,2556.4,2556.3,1.5]
[1726906031362,5.28366785,2556.4,2556.3,36.5]
[1726906031545,6.82714559,2556.4,2556.3,36.5]
[1726906032155,4.65264045,2556.4,2556.3,36.5]
[1726906032341,4.06091783,2556.4,2556.3,36.5]
[1726906033162,3.10030744,2556.4,2556.3,38.794]
[1726906033466,0.44978466,2556.5,2556.3,40.5099117]
[1726906033624,0.44978466,2556.5,2556.4,5.294]
[1726906034849,0.44978466,2556.5,2556.4,40.294]
[1726906037457,7.37,2557.1,2556.5,2.4101]
[1726906037674,7.37,2557.1,2556.4,39.00950454]
[1726906037675,8.19119458,2557.5,2557.1,5.4101]
[1726906037875,33.29180497,2557.6,2557.3,1.7159117]
[1726906037876,20.67119458,2557.6,2557.3,1.7159117]
[1726906038346,20.67119458,2557.6,2557.4,35.0]
[1726906038347,19.85,2557.6,2557.4,35.0]
[1726906043390,12.22790628,2558.0,2557.4,35.0]
[1726906043601,1.03502609,2557.8,2557.4,35.0]
[1726906043975,1.03502609,2557.8,2557.2,5.4101]
[1726906044616,1.03502609,2557.8,2557.3,35.0]
[1726906051865,2.9233,2557.3,2556.4,2.4931]
[1726906052054,0.55,2557.1,2556.4,2.4931]
[1726906052239,0.55,2557.1,2556.5,35.0]
[1726906052567,0.55,2556.7,2556.4,2.7931]
[1726906053066,0.55,2556.7,2556.4,35.3]
[1726906053237,0.64778298,2556.7,2556.4,35.3]
[1726906053440,0.55,2556.7,2556.4,35.3]
[1726906054219,4.2769946,2556.7,2556.4,35.3]
[1726906054420,4.95180319,2556.7,2556.4,35.3]
[1726906054957,5.04959441,2556.7,2556.4,35.3]
[1726906055337,4.95180319,2556.7,2556.4,0.3]
[1726906056047,0.55,2556.5,2556.4,0.3]
[1726906056251,5.08065469,2556.5,2556.4,0.3]
[1726906056635,5.08065469,2556.5,2556.4,0.6]
[1726906057036,1.35366009,2556.5,2556.4,0.6]
[1726906059069,0.55,2556.5,2556.4,0.6]
[1726906059272,1.987,2556.6,2556.4,0.6]
[1726906060689,1.987,2556.6,2556.4,0.9]
[1726906061286,0.55,2556.5,2556.4,0.9]
[1726906063763,0.55,2556.5,2556.4,35.9]
[1726906065970,0.55,2556.5,2556.4,0.9]
[1726906066182,1.29263543,2556.5,2556.4,0.9]
[1726906066492,1.194831,2556.5,2556.4,0.9]
[1726906066848,0.55,2556.5,2556.4,0.9]
[1726906067094,20.4,2556.5,2556.4,0.9]
[1726906072474,22.8074,2556.5,2556.4,0.9]
[1726906074064,24.52800638,2556.5,2556.4,0.9]
[1726906074595,28.43959638,2556.5,2556.4,0.9]
[1726906074786,31.75682048,2556.5,2556.4,0.9]
[1726906075701,32.65553607,2556.5,2556.4,0.9]
[1726906077064,31.75682048,2556.5,2556.4,0.9]
[1726906081463,27.84523048,2556.5,2556.4,0.9]
[1726906084708,31.75682048,2556.5,2556.4,0.9]
[1726906090403,27.84523048,2556.5,2556.4,0.9]
[1726906092291,28.74452513,2556.5,2556.4,0.9]
[1726906093316,30.91576033,2556.5,2556.4,0.9]
[1726906093924,30.91577251,2556.5,2556.4,0.9]
[1726906094332,30.09457793,2556.5,2556.4,0.9]
[1726906094836,31.3263829,2556.5,2556.4,0.9]
[1726906095033,35.2379729,2556.5,2556.4,0.9]
[1726906095623,35.80799403,2556.5,2556.4,0.9]
[1726906095813,37.44927324,2556.5,2556.4,0.9]
[1726906096134,35.80799403,2556.5,2556.4,0.9]
[1726906096505,37.85113263,2556.5,2556.4,0.9]
[1726906097438,38.06488682,2556.5,2556.4,0.9]
[1726906097792,35.80799403,2556.5,2556.4,0.9]